Cogmind - Beta 15 *** ADVENTURER MODE // 2025.06.29 @ 17:20:29 Player: Xoddiel Result: Destroyed by Y-45 Defender with Beam Rifle Performance ------------- Evolutions (1) 500 Regions Visited (3) 600 Robots Destroyed (58) 290 Value Destroyed (1307) 1307 Prototype IDs (7) 140 Alien Tech Used (0) 0 Bonus (0) 0 TOTAL SCORE: 2837 Bonus ------- None Cogmind --------- Core Integrity 0/400 Matter 72/300 Energy 250/250 System Corruption 0% Temperature Cool (9) Movement Hovering (60) Location -9/Materials Parts ------- > --- POWER (2) -------- Ion Engine > --- PROPULSION (3) --- Hover Unit > --- UTILITY (2) ------ Weight Redist. System Advanced Visual Processing Unit > --- WEAPON (2) ------- Improved Assault Rifle > --- INVENTORY (5) ---- Medium Laser Assault Rifle Peak State ------------ > --- POWER ------------ Ion Engine > --- PROPULSION ------- Hover Unit > --- UTILITY ---------- Weight Redist. System Advanced Visual Processing Unit > --- WEAPON ----------- Improved Assault Rifle > --- INVENTORY -------- Medium Laser Assault Rifle [Rating: 10] Favorites ----------- Power Light Ion Engine Engine Light Ion Engine Propulsion Wheel Leg Improved Aluminum Leg Wheel Wheel Hover Unit Hover Unit Flight Unit Flight Unit Utility ECM Suite Device ECM Suite Processor Signal Interpreter Protection Core Shielding Weapon Assault Rifle Energy Gun EM Pulse Gun Ballistic Gun Assault Rifle Launcher Mini Grenade Launcher Build | -11 -10 -10 -9 ------- Run | Yrd Mat Min Mat Slots Evolved 2 | . . . 2 Power 1 | . . . 1 Propulsion 1 | . . . 1 Utility . | . . . . Weapon . | . . . . Parts Attached 25 | 5 10 . 10 Power 5 | 1 2 . 2 Engine 5 | 1 2 . 2 Core . | . . . . Reactor . | . . . . Propulsion 9 | 2 3 . 4 Treads . | . . . . Leg 2 | . . . 2 Wheel 3 | 2 1 . . Hover 2 | . . . 2 Flight 2 | . 2 . . Utility 6 | . 4 . 2 Device 3 | . 2 . 1 Storage . | . . . . Processor 2 | . 1 . 1 Hackware . | . . . . Protection 1 | . 1 . . Artifact . | . . . . Weapon 5 | 2 1 . 2 Energy Gun 1 | 1 . . . Energy Cannon . | . . . . Ballistic Gun 2 | 1 . . 1 Ballistic Cannon . | . . . . Launcher 2 | . 1 . 1 Special Weapon . | . . . . Impact Weapon . | . . . . Slashing Weapon . | . . . . Piercing Weapon . | . . . . Special Melee Weapon . | . . . . Unidentified Prototypes . | . . . . Parts Lost 11 | . 1 . 10 Power 3 | . . . 3 Propulsion 4 | . . . 4 Utility 2 | . . . 2 Weapon 2 | . 1 . 1 Highest Loss Streak 4 | . 1 . 4 To Critical Strikes . | . . . . Average Backups 3 | . 3 3 3 Power . | . . 1 . Propulsion . | . 1 . . Utility . | . . 1 . Weapon 1 | . 1 1 2 Tool/Special . | . . . . Unused Backups 1 | . . . 1 Power . | . . . . Propulsion . | . . . . Utility . | . . . . Weapon 1 | . . . 1 Tool/Special . | . . . . Average Slot Usage (%) 63 | . 87 85 38 Engine 10 | . 14 14 5 Leg 2 | . . . 5 Wheel 10 | . 24 . . Hover 1 | . . . 2 Flight 4 | . 3 28 2 Device 9 | . 13 14 3 Processor 5 | . 10 . . Protection 4 | . . 14 7 Energy Gun 2 | . 5 . . Ballistic Gun 7 | . 9 14 4 Launcher 5 | . 5 . 6 Peak Build Rating 10 | 5 7 7 10 Average Rating 5 | 3 6 6 5 On Entrance 4 | . 5 6 6 Naked Turns . | . . . . Heaviest Build 11 | 7 10 11 8 Greatest Support 29 | 20 20 8 29 Greatest Overweight (x) 1 | . . 1 1 Average Overweight (x) . | . . . . Largest Inventory Capacity 5 | 5 5 5 5 Average Capacity 5 | 5 5 5 5 Most Carried 5 | 2 5 4 5 Average Carried 3 | . 3 3 3 Final Capacity 5 | 5 5 5 5 Final Carried 4 | . 4 4 2 Class Distribution -------------------- 100% | Mutant Dominant Class ---------------- Mutant | -10/Materials Mutant | -10/Mines Mutant | -9/Materials Resources | -11 -10 -10 -9 ----------- Run | Yrd Mat Min Mat Matter Collected 1071 | 230 240 145 456 Remotely . | . . . . Salvage Created 928 | 37 247 114 530 Parts 85 | . 31 14 40 Haulers Intercepted . | . . . . Recyclers Shooed . | . . . . Parts Field Recycled . | . . . . Retrieved Matter . | . . . . Parts Self-Destructed . | . . . . Prevented . | . . . . Kills | -11 -10 -10 -9 ------- Run | Yrd Mat Min Mat Combat Hostiles Destroyed 47 | 1 18 6 22 Guns 14 | 1 9 3 1 AOE 33 | . 9 3 21 Classes Destroyed 9 | 1 2 1 5 Worker 1 | . . . 1 Builder 6 | . 1 2 3 Recycler 2 | . . 1 1 Mechanic 1 | . . . 1 Watcher 1 | . . . 1 Swarmer 21 | . 12 6 3 Grunt 19 | 1 6 . 12 Brawler 1 | . . . 1 Sentry 6 | . . . 6 Best Kill Streak 9 | 1 9 9 7 Combat Bots Only 8 | 1 8 6 6 Max Kills in Single Turn 3 | 1 3 2 3 Gunslinging . | . . . . Exploded 3 | . 3 1 2 Melee . | . . . . Uniques/NPCs Destroyed . | . . . . Combat | -11 -10 -10 -9 -------- Run | Yrd Mat Min Mat Hostile Shots Fired 234 | 5 59 27 143 Missed 97 | 4 18 10 65 Hits 137 | 1 41 17 78 Projectile 137 | 1 41 17 78 Critical Strikes 4 | . 1 . 3 Actively Blocked 1 | . . . 1 Damage Taken 1312 | 8 311 106 887 Core 492 | . 73 16 403 Absorbed by Shields . | . . . . Redirected to Shielding 50 | . . 3 47 Ignored by Resistances 390 | 2 101 36 251 Regen/Repaired (Parts) 118 | . 55 . 63 Core Remaining (%) 82 | 100 . 64 . Volleys Fired 114 | 5 42 15 52 Largest 1 | 1 1 1 1 Hottest 40 | 40 40 30 30 Shots Fired 114 | 5 42 15 52 Gun 46 | 5 30 9 2 Cannon . | . . . . Launcher 68 | . 12 6 50 Special . | . . . . Kinetic 33 | . 22 9 2 Thermal . | . . . . Explosive 68 | . 12 6 50 Electromagnetic 13 | 5 8 . . Robot Hit Streak 18 | 4 12 4 18 Robot Miss Streak 3 | 1 3 2 2 Penetration Max . | . . . . Secondary Targets . | . . . . Shots Hit Robots 77 | 4 29 7 37 Core Hits 99 | 3 28 10 58 Critical Kills . | . . . . Critical Parts Destroyed . | . . . . Critical Strikes . | . . . . Melee Attacks . | . . . . Impact . | . . . . Slashing . | . . . . Piercing . | . . . . Sneak Attacks . | . . . . Combat Hostiles . | . . . . Follow-up Attacks . | . . . . Damage Inflicted 4151 | 99 1119 428 2505 Guns 398 | 55 251 60 32 Cannons . | . . . . Explosions 3748 | 44 868 368 2468 Melee . | . . . . Ramming 5 | . . . 5 Kinetic 286 | . 194 60 32 Thermal 76 | 44 32 . . Explosive 3672 | . 836 368 2468 Electromagnetic 112 | 55 57 . . Impact . | . . . . Slashing . | . . . . Piercing . | . . . . Highest Corruption . | . . . . Average Corruption . | . . . . Corruption Purged . | . . . . Corruption Blocked . | . . . . Overload Shots . | . . . . Overflow Damage 80 | . 19 33 28 Projectiles . | . . . . Explosions 80 | . 19 33 28 Melee . | . . . . Knockbacks . | . . . . Impact . | . . . . Kinetic . | . . . . Secondary . | . . . . Self-Inflicted Damage 67 | . . 4 63 Shots 3 | . . 1 2 Rammed 2 | . . . 2 Targets Rammed 2 | . . . 2 Kicked . | . . . . Crushed . | . . . . Highest Temperature 6 | 6 6 . 6 Average Temperature 4 | 6 2 . 2 Received Heat Transfer 501 | 6 102 . 393 Siege Activations . | . . . . Martial Activations . | . . . . Shielding Activations . | . . . . Robots Disrupted . | . . . . Combat Hostiles . | . . . . Robots Corrupted . | . . . . Combat Hostiles . | . . . . Parts Fried . | . . . . Impact Corruptions . | . . . . Robots Melted . | . . . . Combat Hostiles . | . . . . Parts Melted . | . . . . Heat Transferred 200 | 150 50 . . Parts Sabotaged . | . . . . Parts Stolen . | . . . . Parts Stripped . | . . . . Power Chain Reactions 2 | 1 1 . . Alert | -11 -10 -10 -9 ------- Run | Yrd Mat Min Mat Maximum Alert Level 1 | . 1 . 1 Low Security (%) 98 | 100 98 100 97 Level 1 1 | . 1 . 2 Level 2 . | . . . . Level 3 . | . . . . Level 4 . | . . . . Level 5 . | . . . . High Security . | . . . . Max Security . | . . . . Peak Influence 353 | 20 213 155 353 Initial 14 | . 5 . 14 Average 78 | 1 58 93 98 Influence Increases 1759 | 20 532 175 1032 Destroy 0b10 Robot/C 940 | 20 360 120 440 Destroy 0b10 Robot/NC 55 | . 5 15 35 Destroy Leader 202 | . 70 20 112 Successful Hack 52 | . 43 . 9 Disable Machine 54 | . . . 54 Destroy Structure 291 | . 54 20 217 Partial Spotted 75 | . . . 75 Lose Combat Pursuer 90 | . . . 90 Influence Decreases 1759 | 10 542 130 1077 Entered New Map 36 | . 5 . 31 Time Decay 1463 | 10 527 130 796 Lost Part 110 | . 10 . 100 Purge Threat 150 | . . . 150 Squads Dispatched 6 | . 3 . 3 Investigation 5 | . 3 . 2 Extermination . | . . . . Reinforcement 1 | . . . 1 Assault . | . . . . Garrison . | . . . . Intercept . | . . . . Searches Triggered . | . . . . Construction Impeded . | . . . . Haulers Reinforced . | . . . . Active Scanning Responses . | . . . . Cargo Convoy Interrupts . | . . . . Stealth | -11 -10 -10 -9 --------- Run | Yrd Mat Min Mat Distress Signals 3 | . 1 . 2 Communications Jammed . | . . . . Distress Signals . | . . . . Times Spotted 85 | 1 32 6 46 Peak Tracking Total 6 | 1 3 3 6 Tactical Retreats 4 | . . . 4 Traps | -11 -10 -10 -9 ------- Run | Yrd Mat Min Mat Traps Triggered 1 | . 1 . . Indirectly . | . . . . Trap Hack Attempts . | . . . . Triggered . | . . . . Disarmed . | . . . . Reprogrammed . | . . . . Reused . | . . . . Traps Extracted . | . . . . Installed . | . . . . Triggered . | . . . . Machines | -11 -10 -10 -9 ---------- Run | Yrd Mat Min Mat Machines Disabled 7 | . . . 7 Max in Single Turn 2 | . . . 2 Machines Repaired . | . . . . Machines Dismantled . | . . . . Machines Sabotaged . | . . . . Overloaded Fab Kills . | . . . . Hacking | -11 -10 -10 -9 --------- Run | Yrd Mat Min Mat Machines Accessed 16 | . 10 . 6 Terminals 12 | . 8 . 4 Fabricators . | . . . . Repair Stations 2 | . 1 . 1 Recycling Units 2 | . 1 . 1 Scanalyzers . | . . . . Garrison Access . | . . . . Total Hacks 46 | . 30 . 16 Successful 24 | . 15 . 9 Failed 22 | . 15 . 7 Catastrophic 1 | . 1 . . Database Lockouts . | . . . . Manual . | . . . . Terminals 29 | . 20 . 9 Fabricators . | . . . . Repair Stations 7 | . 3 . 4 Recycling Units 10 | . 7 . 3 Scanalyzers . | . . . . Garrison Access . | . . . . Terminal Hacks 15 | . 11 . 4 Record 1 | . 1 . . Prototype ID Bank 5 | . 4 . 1 Emergency Access Points 1 | . 1 . . Repair Station Index 2 | . 1 . 1 Recycling Unit Index 1 | . 1 . . Unreport Threat 1 | . . . 1 Dispatch Records 2 | . 1 . 1 Zone Layout 2 | . 2 . . Fabricator Hacks . | . . . . Repair Station Hacks 6 | . 2 . 4 Scan Component 3 | . 1 . 2 Repair 3 | . 1 . 2 Recycling Unit Hacks 3 | . 2 . 1 Process 2 | . 1 . 1 Report Inventory 1 | . 1 . . Scanalyzer . | . . . . Garrison Access Hacks . | . . . . Unauthorized Hacks . | . . . . Terminals . | . . . . Fabricators . | . . . . Repair Stations . | . . . . Recycling Units . | . . . . Scanalyzers . | . . . . Garrison Access . | . . . . Data Cores Recovered . | . . . . Used . | . . . . Hacking Detections 11 | . 8 . 3 Full Trace Events 8 | . 6 . 2 Feedback Events . | . . . . Feedback Blocked . | . . . . Robot Schematics Acquired . | . . . . Robots Built . | . . . . Authchips . | . . . . Time . | . . . . Total Robot Build Rating . | . . . . Part Schematics Acquired . | . . . . Parts Built . | . . . . Authchips . | . . . . Time . | . . . . Total Part Build Rating . | . . . . Parts Repaired 3 | . 1 . 2 Time 65 | . 13 . 52 Parts Recycled . | . . . . Recycled Matter 120 | . 64 . 56 Retrieved Matter . | . . . . Retrieved Components . | . . . . Parts Scanalyzed . | . . . . Part Schematics Acquired . | . . . . Parts Damaged . | . . . . Bothacking | -11 -10 -10 -9 ------------ Run | Yrd Mat Min Mat Used RIF Installer . | . . . . Robots Hacked . | . . . . Non-combat . | . . . . Combat . | . . . . Robot Hacks Applied . | . . . . Relay Couplers Released . | . . . . Fabnet Peak Effective % . | . . . . Robots Rewired . | . . . . Allies Hacked . | . . . . Hacks Repelled . | . . . . Allies | -11 -10 -10 -9 -------- Run | Yrd Mat Min Mat Total Allies . | . . . . Largest Group . | . . . . Highest-Rated Group . | . . . . Highest-Rated Ally . | . . . . Total Orders . | . . . . Ally Attacks . | . . . . Total Damage . | . . . . Kills . | . . . . Allies Corrupted . | . . . . Allies Melted . | . . . . Intel | -11 -10 -10 -9 ------- Run | Yrd Mat Min Mat Active Infowar (turns) 1999 | . 1515 274 210 Optics 79 | . . . 79 ECM 1920 | . 1515 274 131 Robot Analysis Total . | . . . . Derelict Logs Recovered 2 | . . 2 . Drone Launches . | . . . . Drone Recoveries . | . . . . Exploration | -11 -10 -10 -9 ------------- Run | Yrd Mat Min Mat Turns Passed 3568 | 81 1535 274 1678 Spaces Moved 4775 | 86 2020 650 2019 Core 489 | 24 . . 465 Treads . | . . . . Legs 584 | . . . 584 Wheels 1617 | 62 1555 . . Hover 657 | . . . 657 Flight 1428 | . 465 650 313 Fastest Speed 37 | 50 37 37 37 Average Speed 67 | 71 70 37 75 Slowest Speed 120 | 80 80 117 120 Overloaded Moves . | . . . . Propulsion Burnouts . | . . . . Robots Hopped 15 | . 4 9 2 Potential Cave-ins 1 | . . . 1 Cave-ins Triggered . | . . . . Exploration Rate (%) 70 | 8 98 93 84 Regions Visited 3 Branch Regions 1 Pre-discovered Areas 1 | . . 1 . Known Exits Taken . | . . . . Unknown Exits Taken 3 | 1 1 1 . Scrap Searched 1 | . . 1 . Spaces Dug . | . . . . Terrain Destroyed 365 | . 74 26 265 Melee . | . . . . Projectile . | . . . . AOE 365 | . 74 26 265 Terrain Rammed . | . . . . Walls Destroyed . | . . . . Machines Disabled . | . . . . Actions | -11 -10 -10 -9 --------- Run | Yrd Mat Min Mat Total 4974 | 100 2090 657 2127 Wait 23 | . . . 23 Move 4742 | 85 2011 631 2015 Hop 15 | . 4 9 2 Pick Up 26 | 5 12 . 9 Fast Attach 3 | . . . 3 Attach 24 | 5 5 1 13 Detach 6 | . 1 1 4 Swap 11 | . 10 . 1 Drop 8 | . 5 . 3 Fire 114 | 5 42 15 52 Melee . | . . . . Ram 2 | . . . 2 Kick . | . . . . Crush . | . . . . Escape Stasis . | . . . . Rewire . | . . . . Trap . | . . . . Miscellaneous . | . . . . Route ------- -11/Scrapyard -10/Materials (discovered 6 exits: *Mat x3 / [*Min x2] / [*Sub]) -10/Mines (discovered 2 exits: *Mat x2) -9/Materials (discovered 3 exits: [*Mat] / [*Min] / [*Sto]) History --------- Turn | Location | Event 2 | -11/Scrapyard | Met Revision 17 63 | -11/Scrapyard | Discovered new exit (range 8) 82 | -11/Scrapyard | Entered Materials 312 | -10/Materials | Build established: Mutant 377 | -10/Materials | Destroyed 8 combat bots 424 | -10/Materials | Discovered new exit (range 11) 516 | -10/Materials | Discovered new exit (range 8) 627 | -10/Materials | Discovered new exit (range 7) 664 | -10/Materials | Repaired Grenade Launcher? 792 | -10/Materials | Discovered new exit (range 14) 852 | -10/Materials | Discovered new exit (range 16) 1086 | -10/Materials | Discovered new exit (range 14) 1617 | -10/Materials | Entered Mines 1620 | -10/Mines | Met a Derelict bent on vengeance 1622 | -10/Mines | Discovered new exit (range 8) 1641 | -10/Mines | Learned location of Storage (-9) 1759 | -10/Mines | Learned Materials non-interactive machine intel 1803 | -10/Mines | Found a hidden stash of uninstalled traps 1859 | -10/Mines | Discovered new exit (range 5) 1891 | -10/Mines | Entered Materials 1891 | -9/Materials | Evolved 2 slots: Power x1, Propulsion x1 1892 | -9/Materials | Loaded intel: 44 non-interactive machine locations 1931 | -9/Materials | Repaired Flight Unit 1957 | -9/Materials | Repaired Assault Rifle 1990 | -9/Materials | Discovered new exit (range 6) 2006 | -9/Materials | Discovered new exit (range 8) 2123 | -9/Materials | Lost 3 parts (1p2n) 2296 | -9/Materials | Discovered new exit (range 3) 2830 | -9/Materials | Core integrity fell below 50% 3033 | -9/Materials | Lost 4 parts (2n1u1w) 3039 | -9/Materials | Core integrity fell below 20% 3569 | -9/Materials | Destroyed by Y-45 Defender with Beam Rifle Last Messages --------------- U-05 Engineer lays Concrete. K-01 Serf collects debris. Critical hit (Burn: +37). R-06 Scavenger collects Terrain Scanner. K-01 Serf collects debris. Acquired 5 matter. Connecting with Terminal... >>Prototypes Downloading prototype IDs... Adv. Beam Rifle Hvy. Ion Engine Acquired Ion Engine. Terminal disabled. K-01 Serf cleans the Neutrino Reactor. Slammed into K-01 Serf. ALERT: Hostiles spotted, dispatching reinforcements to Terminal M010. Acquired Adv. Visual Processing Unit. K-01 Serf cleans the Nuclear Reactor. [Achievement: First Step to Greatness] Map ----- +----------------------------------------------------+ | ?????# +???????????? | | ###### #????"""????? | | """ #????"""????? | | ########+# """ ##????"""????? | | # """ ?????????????? | | # ?????????????? | | # ?? #????????????? | | # """ #????????????? | | +#####+### """ ?????????????? | | """ #????????????? | | ########?????? | | ## #?????? | | #+#####+## """ ## """ #?????? | | ## """ ## """ #?????? | | [ ## """ ## """ #?????? | | ## ## #?????? | | / ## #?????? | | """ """ ## """ ## #?????? | | """ """ ## """ ## ####### | | """ """ ## """ ## " " # ] # | | ## ## "T" # # | | ########### ## """ # # | | ## """ ## # """ # | | T # """ ####+### """ # | | # """ # """ # | | + @ # | | """ """ # Y # """ # | | """ """ # #######+#+# """ # | | """ """ # #### # """g# | | # #??# # g # | | #######+## #??# # # | | ??????# ## #??# ####### | | ??????# ## #??# #?????? | | ??????# ## #??##########?????? | | ??????# ## #?????????????????? | | ???#### ## #?????????????????? | | ???+ #?????????????????? | | ???# #######+##????????????????? | | ???# ??# #????????????????? | | ???+ ??# #????????????????? | | ???# ??# #????????????????? | | ???# ??# #????????????????? | | ???# #?# #????????????????? | | #### #?# #??????+###??????? | | # ######+####### #??????? | | #^ #??????? | | # ^ #??????? | | + "" #??????? | | # "Y ####### #??????? | | # "" #???????? ##??????? | +----------------------------------------------------+ Best States ------------- Heat Dissipation 28 Energy Generation 10 Energy Capacity 250 Matter Stores 300 Matter Capacity 300 Sight Range 20 Terrain Scan Density 10 ECM Strength 1 Additional Mass Support 6 Resistance: KI 20 Resistance: TH 20 Resistance: EX 20 Resistance: EM 20 Resistance: I 20 Resistance: S 20 Resistance: P 20 Core Shielding 20 Evasion (%) 62 Offensive Hacking 10 Item Schematics ----------------- None Robot Schematics ------------------ None Fabricated ------------ Nothing Repaired ---------- Grenade Launcher | 8% | -10/Materials Assault Rifle | 37% | -9/Materials Alien Tech Used ----------------- None Achievements -------------- First Step to Greatness Challenges ------------ None Game ------ Seed TrapLightningMace Manual? 0 Play Time 01:03:02 Cumulative 3.8 hours Start 2025.06.29 @ 16:15:44 End 2025.06.29 @ 17:20:29 Sessions 1 Manual Loads 0 Difficulty Adventurer Special Mode None Game No. 3 Rogue 0 Adventurer 3 Explorer 0 Win Type - Total 0 Types 0/0/0/0/0/0/0/0/0/0 Lore% 7 Gallery% 2 Achievement% 4 Wizard Run 0 Options --------- Layout 1 ASCII 0 Keyboard 0 Movement Arrows Keybinds 0 Fullscreen 1 Font 24/Terminus Map View 50x35 Zoom Use 0% Tactical HUD 0 Map Filters NONE Filters NONE Steam SD RUN: 61e161eb-7566-4296-ac30-1e2859333e4a